fUST/lending_fUST_20250713
["ID","MTS","AMOUNT","RATE_DAILY","PERIOD"]
[371761967,1752419463764,-460.0,0.00018904,2]
[371761968,1752419463775,-460.0,0.00018904,2]
[371761969,1752419463791,-460.0,0.00018904,2]
[371761970,1752419463817,-460.0,0.00018904,2]
[371761971,1752419463828,-2500.0,0.00018964,2]
[371761972,1752419463838,-1010.08387321,0.00018964,2]
[371761973,1752419463847,-2500.0,0.00018964,2]
[371761974,1752419463857,-503.07991612,0.00019118,2]
[371761975,1752419463867,-460.0,0.00019178,2]
[371761976,1752419463877,-151.0,0.00019178,2]
[371761977,1752419463887,-460.0,0.00019178,2]
[371761978,1752419463897,-460.0,0.00019178,2]
[371761979,1752419463908,-460.0,0.00019178,2]
[371761980,1752419463917,-265.04993,0.00019178,2]
[371761981,1752419463929,-460.0,0.00019178,2]
[371761982,1752419463939,-460.0,0.00019178,2]
[371761983,1752419463949,-265.04993,0.00019178,2]
[371761984,1752419463959,-460.0,0.00019178,2]
[371761985,1752419463969,-460.0,0.00019178,2]
[371761986,1752419463979,-417.03171146,0.00019178,2]
[371761987,1752419463989,-234.3288064,0.00019178,2]
[371761988,1752419464065,-460.0,0.00019178,2]
[371761989,1752419464075,-460.0,0.00019178,2]
[371761990,1752419464086,-460.0,0.00019178,2]
[371761991,1752419464096,-460.0,0.00019178,2]
[371761992,1752419464106,-460.0,0.00019178,2]
[371761993,1752419464116,-460.0,0.00019178,2]
[371761994,1752419464126,-460.0,0.00019178,2]
[371761995,1752419464136,-198.38958192,0.00019178,2]
[371761996,1752419464146,-460.0,0.00019178,2]
[371761997,1752419464156,-460.0,0.00019178,2]
[371761998,1752419464165,-460.0,0.00019178,2]
[371761999,1752419464175,-193.52613,0.00019178,2]
[371762000,1752419464184,-193.52613,0.00019178,2]
[371762001,1752419464194,-460.0,0.00019178,2]
[371762002,1752419464203,-469.53203659,0.00019178,2]
[371762003,1752419464213,-460.0,0.00019178,2]
[371762004,1752419464223,-460.0,0.00019178,2]
[371762005,1752419464233,-460.0,0.00019178,2]
[371762006,1752419464242,-460.0,0.00019178,2]
[371762007,1752419464252,-460.0,0.00019178,2]
[371762008,1752419464262,-460.0,0.00019178,2]
[371762009,1752419464272,-460.0,0.00019178,2]
[371762010,1752419464281,-460.0,0.00019178,2]
[371762011,1752419464293,-469.97885179,0.00019178,2]
[371762012,1752419464303,-469.4426236,0.00019178,2]
[371762013,1752419464312,-460.0,0.00019178,2]
[371762014,1752419464323,-460.0,0.00019178,2]
[371762015,1752419464334,-2850.19,0.00019178,2]
[371762016,1752419464343,-460.0,0.00019178,2]
[371762017,1752419464353,-460.0,0.00019178,2]
[371762018,1752419464364,-517.19,0.00019178,2]
[371762019,1752419464373,-460.0,0.00019178,2]
[371762020,1752419464383,-564.42,0.00019178,2]
[371762021,1752419464392,-1941.3,0.00019178,2]
[371762022,1752419464402,-781.28,0.00019178,2]
[371762023,1752419464412,-460.0,0.00019178,2]
[371762024,1752419464422,-460.0,0.00019178,2]
[371762025,1752419464432,-460.0,0.00019178,2]
[371762026,1752419464441,-460.0,0.00019178,2]
[371762027,1752419464452,-500.69799627,0.00019178,2]
[371762028,1752419464462,-460.0,0.00019178,2]
[371762029,1752419464471,-460.0,0.00019178,2]
[371762030,1752419464481,-460.0,0.00019178,2]
[371762031,1752419464490,-460.0,0.00019178,2]
[371762032,1752419464500,-1109.74,0.00019178,2]
[371762033,1752419464510,-460.0,0.00019178,2]
[371762034,1752419464520,-460.0,0.00019178,2]
[371762035,1752419464529,-331.20809396,0.00019178,2]
[371762036,1752419464541,-555.81,0.00019178,2]
[371762037,1752419464551,-460.0,0.00019178,2]
[371762038,1752419464560,-460.0,0.00019178,2]
[371762039,1752419464570,-460.0,0.00019178,2]
[371762040,1752419464583,-460.0,0.00019178,2]
[371762041,1752419464608,-460.0,0.00019178,2]
[371762042,1752419464625,-460.0,0.00019178,2]
[371762043,1752419464646,-460.0,0.00019178,2]
[371762044,1752419464668,-460.0,0.00019178,2]
[371762045,1752419464686,-460.0,0.00019178,2]
[371762046,1752419464706,-460.0,0.00019178,2]
[371762047,1752419464723,-1494.57,0.00019178,2]
[371762048,1752419464740,-460.0,0.00019178,2]
[371762049,1752419464760,-741.45,0.00019178,2]
[371762050,1752419464782,-460.0,0.00019178,2]
[371762051,1752419464796,-601.87,0.00019178,2]
[371762052,1752419464816,-460.0,0.00019178,2]
[371762053,1752419464831,-460.0,0.00019178,2]
[371762054,1752419464848,-460.0,0.00019178,2]
[371762055,1752419464862,-460.0,0.00019178,2]
[371762056,1752419464877,-460.0,0.00019178,2]
[371762057,1752419464892,-460.0,0.00019178,2]
[371762058,1752419464907,-460.0,0.00019178,2]
[371762059,1752419464922,-937.76,0.00019178,2]
[371762060,1752419464937,-927.21,0.00019178,2]
[371762061,1752419464952,-460.0,0.00019178,2]
[371762062,1752419464967,-460.0,0.00019178,2]
[371762063,1752419464982,-460.0,0.00019178,2]
[371762064,1752419464997,-460.0,0.00019178,2]
[371762065,1752419465014,-460.0,0.00019178,2]
[371762066,1752419465028,-1964.64,0.00019178,2]
[371762067,1752419465046,-272.51935294,0.00019178,2]
[371762068,1752419465061,-460.0,0.00019178,2]
[371762069,1752419465076,-460.0,0.00019178,2]
[371762070,1752419465091,-460.0,0.00019178,2]
[371762071,1752419465106,-546.3,0.00019178,2]
[371762072,1752419465120,-460.0,0.00019178,2]
[371762073,1752419465135,-460.0,0.00019178,2]
[371762074,1752419465151,-821.8,0.00019178,2]
[371762075,1752419465164,-460.0,0.00019178,2]
[371762076,1752419465180,-460.0,0.00019178,2]
[371762077,1752419465194,-460.0,0.00019178,2]
[371762078,1752419465208,-460.0,0.00019178,2]
[371762079,1752419465222,-377.57640303,0.00019178,2]
[371762080,1752419465237,-460.0,0.00019178,2]
[371762081,1752419465251,-666.0,0.00019178,2]
[371762082,1752419465266,-382.394571,0.00019178,2]
[371762083,1752419465281,-364.868119,0.000192,2]
[371762084,1752419465300,-364.868119,0.000192,2]
[371762085,1752419465314,-1679.57,0.000192,2]
[371762086,1752419465329,-2327.45,0.000192,2]
[371762087,1752419465345,-412.34,0.000192,2]
[371762088,1752419465360,-577.183168,0.00019329,2]
[371762089,1752419465375,-577.183168,0.00019329,2]
[371762090,1752419465392,-151.0,0.00019329,2]
[371762091,1752419465506,-151.0,0.00019329,2]
[371762092,1752419465518,-151.0,0.00019329,2]
[371762093,1752419465528,-100000.0,0.00019329,2]
[371762094,1752419465539,-237.71175,0.00019452,2]
[371762095,1752419465550,-460.0,0.00019452,2]
[371762096,1752419465560,-460.0,0.00019452,2]
[371762097,1752419465570,-460.0,0.00019452,2]
[371762098,1752419465580,-265.04993,0.00019452,2]
[371762099,1752419465593,-460.0,0.00019452,2]
[371762100,1752419465602,-460.0,0.00019452,2]
[371762101,1752419465618,-265.04993,0.00019452,2]
[371762102,1752419465627,-460.0,0.00019452,2]
[371762103,1752419465638,-460.0,0.00019452,2]
[371762104,1752419465647,-485.02430456,0.00019452,2]
[371762105,1752419465657,-460.0,0.00019452,2]
[371762106,1752419465667,-460.0,0.00019452,2]
[371762107,1752419465677,-460.0,0.00019452,2]
[371762108,1752419465687,-460.0,0.00019452,2]
[371762109,1752419465696,-460.0,0.00019452,2]
[371762110,1752419465706,-460.0,0.00019452,2]
[371762111,1752419465715,-433.97984751,0.00019452,2]
[371762112,1752419465725,-486.84793417,0.00019452,2]
[371762113,1752419465734,-460.0,0.00019452,2]
[371762114,1752419465744,-193.52613,0.00019452,2]
[371762115,1752419465754,-193.52613,0.00019452,2]
[371762116,1752419465763,-460.0,0.00019452,2]
[371762117,1752419465773,-162.0749,0.00019452,2]
[371762118,1752419465783,-460.0,0.00019452,2]
[371762119,1752419465794,-537.39267293,0.00019452,2]
[371762120,1752419465804,-460.0,0.00019452,2]
[371762121,1752419465813,-460.0,0.00019452,2]
[371762122,1752419465822,-460.0,0.00019452,2]
[371762123,1752419465832,-460.0,0.00019452,2]
[371762124,1752419465842,-460.0,0.00019452,2]
[371762125,1752419465852,-460.0,0.00019452,2]
[371762126,1752419465862,-151.07472828,0.00019452,2]
[371762127,1752419465872,-2850.19,0.00019452,2]
[371762128,1752419465882,-460.0,0.00019452,2]
[371762129,1752419465892,-460.0,0.00019452,2]
[371762130,1752419465902,-517.19,0.00019452,2]
[371762131,1752419465911,-460.0,0.00019452,2]
[371762132,1752419465921,-564.42,0.00019452,2]
[371762133,1752419465931,-1941.3,0.00019452,2]
[371762134,1752419465940,-781.28,0.00019452,2]
[371762135,1752419465950,-460.0,0.00019452,2]
[371762136,1752419465960,-460.0,0.00019452,2]
[371762137,1752419465969,-460.0,0.00019452,2]
[371762138,1752419465979,-460.0,0.00019452,2]
[371762139,1752419465988,-468.4414643,0.00019452,2]
[371762140,1752419465998,-460.0,0.00019452,2]
[371762141,1752419466008,-460.0,0.00019452,2]
[371762142,1752419466018,-587.99166495,0.00019452,2]
[371762143,1752419466029,-1109.74,0.00019452,2]
[371762144,1752419466040,-460.0,0.00019452,2]
[371762145,1752419466052,-460.0,0.00019452,2]
[371762146,1752419466064,-555.81,0.00019452,2]
[371762147,1752419466080,-460.0,0.00019452,2]
[371762148,1752419466095,-460.0,0.00019452,2]
[371762149,1752419466105,-253.44149308,0.00019452,2]
[371762150,1752419466117,-460.0,0.00019452,2]
[371762151,1752419466126,-460.0,0.00019452,2]
[371762152,1752419466135,-460.0,0.00019452,2]
[371762153,1752419466145,-460.0,0.00019452,2]
[371762154,1752419466154,-460.0,0.00019452,2]
[371762155,1752419466163,-460.0,0.00019452,2]
[371762156,1752419466175,-279.26653153,0.00019452,2]
[371762157,1752419466187,-1494.57,0.00019452,2]
[371762158,1752419466199,-460.0,0.00019452,2]
[371762159,1752419466213,-741.45,0.00019452,2]
[371762160,1752419466230,-460.0,0.00019452,2]
[371762161,1752419466246,-601.87,0.00019452,2]
[371762162,1752419466258,-460.0,0.00019452,2]
[371762163,1752419466271,-460.0,0.00019452,2]
[371762164,1752419466286,-460.0,0.00019452,2]
[371762165,1752419466304,-460.0,0.00019452,2]
[371762166,1752419466314,-460.0,0.00019452,2]
[371762167,1752419466324,-460.0,0.00019452,2]
[371762168,1752419466335,-937.76,0.00019452,2]
[371762169,1752419466344,-460.0,0.00019452,2]
[371762170,1752419466353,-927.21,0.00019452,2]
[371762171,1752419466362,-174.98397861,0.00019452,2]
[371762172,1752419466372,-460.0,0.00019452,2]
[371762173,1752419466382,-460.0,0.00019452,2]
[371762174,1752419466392,-460.0,0.00019452,2]
[371762175,1752419466401,-1964.64,0.00019452,2]
[371762176,1752419466411,-460.0,0.00019452,2]
[371762177,1752419466421,-460.0,0.00019452,2]
[371762178,1752419466432,-546.3,0.00019452,2]
[371762179,1752419466442,-460.0,0.00019452,2]
[371762180,1752419466452,-460.0,0.00019452,2]
[371762181,1752419466463,-460.0,0.00019452,2]
[371762182,1752419466473,-821.8,0.00019452,2]
[371762183,1752419466484,-460.0,0.00019452,2]
[371762184,1752419466495,-460.0,0.00019452,2]
[371762185,1752419466504,-460.0,0.00019452,2]
[371762186,1752419466514,-460.0,0.00019452,2]
[371762187,1752419466523,-460.0,0.00019452,2]
[371762188,1752419466533,-2336.55255679,0.00019512,2]
[371762189,1752419466546,-460.0,0.00019726,2]
[371762190,1752419466555,-460.0,0.00019726,2]
[371762191,1752419466565,-460.0,0.00019726,2]
[371762192,1752419466574,-460.0,0.00019726,2]
[371762193,1752419466584,-440.82494386,0.00019726,2]
[371762194,1752419466597,-460.0,0.00019726,2]
[371762195,1752419466608,-460.0,0.00019726,2]
[371762196,1752419466617,-219.596,0.00019726,2]
[371762197,1752419466630,-219.596,0.00019726,2]
[371762198,1752419466641,-460.0,0.00019726,2]
[371762199,1752419466651,-460.0,0.00019726,2]
[371762200,1752419466660,-460.0,0.00019726,2]
[371762201,1752419466671,-460.0,0.00019726,2]
[371762202,1752419466682,-460.0,0.00019726,2]
[371762203,1752419466692,-460.0,0.00019726,2]
[371762204,1752419466702,-166.1,0.00019726,2]
[371762205,1752419466712,-166.1,0.00019726,2]
[371762206,1752419466723,-460.0,0.00019726,2]
[371762207,1752419466732,-460.0,0.00019726,2]
[371762208,1752419466741,-460.0,0.00019726,2]
[371762209,1752419466753,-460.0,0.00019726,2]
[371762210,1752419466763,-460.0,0.00019726,2]
[371762211,1752419466774,-460.0,0.00019726,2]
[371762212,1752419466784,-460.0,0.00019726,2]
[371762213,1752419466794,-460.0,0.00019726,2]
[371762214,1752419466803,-460.0,0.00019726,2]
[371762215,1752419466813,-2850.19,0.00019726,2]
[371762216,1752419466823,-460.0,0.00019726,2]
[371762217,1752419466834,-460.0,0.00019726,2]
[371762218,1752419466844,-517.19,0.00019726,2]
[371762219,1752419466854,-460.0,0.00019726,2]
[371762220,1752419466864,-564.42,0.00019726,2]
[371762221,1752419466875,-1941.3,0.00019726,2]
[371762222,1752419466885,-781.28,0.00019726,2]
[371762223,1752419466895,-460.0,0.00019726,2]
[371762224,1752419466905,-460.0,0.00019726,2]
[371762225,1752419466914,-460.0,0.00019726,2]
[371762226,1752419466924,-451.22299151,0.00019726,2]
[371762227,1752419466934,-460.0,0.00019726,2]
[371762228,1752419466943,-460.0,0.00019726,2]
[371762229,1752419466953,-1109.74,0.00019726,2]
[371762230,1752419466964,-460.0,0.00019726,2]
[371762231,1752419466974,-460.0,0.00019726,2]
[371762232,1752419466983,-555.81,0.00019726,2]
[371762233,1752419466993,-460.0,0.00019726,2]
[371762234,1752419467003,-460.0,0.00019726,2]
[371762235,1752419467012,-460.0,0.00019726,2]
[371762236,1752419467022,-460.0,0.00019726,2]
[371762237,1752419467031,-460.0,0.00019726,2]
[371762238,1752419467043,-460.0,0.00019726,2]
[371762239,1752419467128,-460.0,0.00019726,2]
[371762240,1752419467138,-460.0,0.00019726,2]
[371762241,1752419467148,-1494.57,0.00019726,2]
[371762242,1752419467158,-460.0,0.00019726,2]
[371762243,1752419467167,-741.45,0.00019726,2]
[371762244,1752419467177,-460.0,0.00019726,2]
[371762245,1752419467187,-601.87,0.00019726,2]
[371762246,1752419467197,-460.0,0.00019726,2]
[371762247,1752419467207,-460.0,0.00019726,2]
[371762248,1752419467216,-460.0,0.00019726,2]
[371762249,1752419467226,-460.0,0.00019726,2]
[371762250,1752419467236,-460.0,0.00019726,2]
[371762251,1752419467246,-460.0,0.00019726,2]
[371762252,1752419467255,-937.76,0.00019726,2]
[371762253,1752419467264,-460.0,0.00019726,2]
[371762254,1752419467274,-927.21,0.00019726,2]
[371762255,1752419467284,-460.0,0.00019726,2]
[371762256,1752419467294,-460.0,0.00019726,2]
[371762257,1752419467304,-460.0,0.00019726,2]
[371762258,1752419467314,-1964.64,0.00019726,2]
[371762259,1752419467324,-460.0,0.00019726,2]
[371762260,1752419467333,-450.17546541,0.00019726,2]
[371762261,1752419467343,-546.3,0.00019726,2]
[371762262,1752419467353,-460.0,0.00019726,2]
[371762263,1752419467364,-460.0,0.00019726,2]
[371762264,1752419467374,-460.0,0.00019726,2]
[371762265,1752419467383,-821.8,0.00019726,2]
[371762266,1752419467393,-460.0,0.00019726,2]
[371762267,1752419467403,-460.0,0.00019726,2]
[371762268,1752419467416,-460.0,0.00019726,2]
[371762269,1752419467432,-460.0,0.00019726,2]
[371762270,1752419467450,-215.0738,0.00019843,2]
[371762271,1752419467459,-364.868119,0.0002,2]
[371762272,1752419467469,-364.868119,0.0002,2]
[371762273,1752419467479,-397.73275503,0.0002,2]
[371762274,1752419467488,-460.0,0.0002,2]
[371762275,1752419467498,-460.0,0.0002,2]
[371762276,1752419467507,-491.35,0.0002,2]
[371762277,1752419467517,-460.0,0.0002,2]
[371762278,1752419467526,-460.0,0.0002,2]
[371762279,1752419467536,-593.79445313,0.0002,2]
[371762280,1752419467546,-460.0,0.0002,2]
[371762281,1752419467555,-460.0,0.0002,2]
[371762282,1752419467565,-460.0,0.0002,2]
[371762283,1752419467574,-460.0,0.0002,2]
[371762284,1752419467584,-460.0,0.0002,2]
[371762285,1752419467596,-460.0,0.0002,2]
[371762286,1752419467604,-460.0,0.0002,2]
[371762287,1752419467613,-460.0,0.0002,2]
[371762288,1752419467621,-460.0,0.0002,2]
[371762289,1752419467631,-460.0,0.0002,2]
[371762290,1752419467639,-460.0,0.0002,2]
[371762291,1752419467648,-472.91252482,0.0002,2]
[371762292,1752419467657,-460.0,0.0002,2]
[371762293,1752419467667,-151.0,0.0002,2]
[371762294,1752419467676,-2850.19,0.0002,2]
[371762295,1752419467684,-460.0,0.0002,2]
[371762296,1752419467694,-172.12,0.0002,2]
[371762297,1752419467703,-517.19,0.0002,2]
[371762298,1752419467712,-460.0,0.0002,2]
[371762299,1752419467721,-564.42,0.0002,2]
[371762300,1752419467729,-1941.3,0.0002,2]
[371762301,1752419467738,-781.28,0.0002,2]
[371762302,1752419467747,-460.0,0.0002,2]
[371762303,1752419467755,-460.0,0.0002,2]
[371762304,1752419467764,-460.0,0.0002,2]
[371762305,1752419467772,-494.27,0.0002,2]
[371762306,1752419467782,-460.0,0.0002,2]
[371762307,1752419467793,-1109.74,0.0002,2]
[371762308,1752419467802,-460.0,0.0002,2]
[371762309,1752419467810,-460.0,0.0002,2]
[371762310,1752419467819,-555.81,0.0002,2]
[371762311,1752419467830,-460.0,0.0002,2]
[371762312,1752419467840,-460.0,0.0002,2]
[371762313,1752419467850,-460.0,0.0002,2]
[371762314,1752419467859,-460.0,0.0002,2]
[371762315,1752419467869,-460.0,0.0002,2]
[371762316,1752419467878,-460.0,0.0002,2]
[371762317,1752419467888,-460.0,0.0002,2]
[371762318,1752419467898,-1494.57,0.0002,2]
[371762319,1752419467907,-473.04859808,0.0002,2]
[371762320,1752419467917,-741.45,0.0002,2]
[371762321,1752419467930,-460.0,0.0002,2]
[371762322,1752419467940,-601.87,0.0002,2]
[371762323,1752419467950,-327.71838445,0.0002,2]
[371762324,1752419467960,-460.0,0.0002,2]
[371762325,1752419467970,-460.0,0.0002,2]
[371762326,1752419467981,-460.0,0.0002,2]
[371762327,1752419467994,-460.0,0.0002,2]
[371762328,1752419468011,-460.0,0.0002,2]
[371762329,1752419468021,-937.76,0.0002,2]
[371762330,1752419468030,-460.0,0.0002,2]
[371762331,1752419468040,-927.21,0.0002,2]
[371762332,1752419468050,-460.0,0.0002,2]
[371762333,1752419468060,-460.0,0.0002,2]
[371762334,1752419468070,-460.0,0.0002,2]
[371762335,1752419468080,-1964.64,0.0002,2]
[371762336,1752419468090,-460.0,0.0002,2]
[371762337,1752419468100,-546.3,0.0002,2]
[371762338,1752419468110,-460.0,0.0002,2]
[371762339,1752419468120,-460.0,0.0002,2]
[371762340,1752419468131,-821.8,0.0002,2]
[371762341,1752419468142,-474.71919553,0.0002,2]
[371762342,1752419468153,-460.0,0.0002,2]
[371762343,1752419468171,-460.0,0.0002,2]
[371762344,1752419468190,-460.0,0.0002,2]
[371762345,1752419468200,-460.0,0.0002,2]
[371762346,1752419468211,-486.2881869,0.00020143,2]
[371762347,1752419468221,-449.557037,0.00020187,2]
[371762348,1752419468230,-460.0,0.00020273,2]
[371762349,1752419468240,-460.0,0.00020273,2]
[371762350,1752419468250,-460.0,0.00020273,2]
[371762351,1752419468259,-460.0,0.00020273,2]
[371762352,1752419468268,-460.0,0.00020273,2]
[371762353,1752419468277,-460.0,0.00020273,2]
[371762354,1752419468288,-460.0,0.00020273,2]
[371762355,1752419468297,-460.0,0.00020273,2]
[371762356,1752419468306,-535.7148807,0.00020273,2]
[371762357,1752419468316,-460.0,0.00020273,2]
[371762358,1752419468326,-567.87,0.00020273,2]
[371762359,1752419468337,-460.0,0.00020273,2]
[371762360,1752419468346,-460.0,0.00020273,2]
[371762361,1752419468356,-470.81751704,0.00020273,2]
[371762362,1752419468366,-475.72077311,0.00020273,2]
[371762363,1752419468375,-2850.19,0.00020273,2]
[371762364,1752419468385,-473.81383971,0.00020273,2]
[371762365,1752419468395,-517.19,0.00020273,2]
[371762366,1752419468404,-569.20922651,0.00020273,2]
[371762367,1752419468413,-564.42,0.00020273,2]
[371762368,1752419468423,-1941.3,0.00020273,2]
[371762369,1752419468433,-781.28,0.00020273,2]
[371762370,1752419468443,-460.0,0.00020273,2]
[371762371,1752419468452,-460.0,0.00020273,2]
[371762372,1752419468462,-460.0,0.00020273,2]
[371762373,1752419468471,-460.0,0.00020273,2]
[371762374,1752419468548,-1109.74,0.00020273,2]
[371762375,1752419468559,-460.0,0.00020273,2]
[371762376,1752419468569,-472.28795967,0.00020273,2]
[371762377,1752419468579,-555.81,0.00020273,2]
[371762378,1752419468591,-194.57729549,0.00020273,2]
[371762379,1752419468601,-607.51015713,0.00020273,2]
[371762380,1752419468613,-460.0,0.00020273,2]
[371762381,1752419468627,-460.0,0.00020273,2]
[371762382,1752419468638,-460.0,0.00020273,2]
[371762383,1752419468647,-460.0,0.00020273,2]
[371762384,1752419468657,-460.0,0.00020273,2]
[371762385,1752419468668,-1494.57,0.00020273,2]
[371762386,1752419468678,-741.45,0.00020273,2]
[371762387,1752419468687,-460.0,0.00020273,2]
[371762388,1752419468696,-601.87,0.00020273,2]
[371762389,1752419468705,-460.0,0.00020273,2]
[371762390,1752419468714,-290.57751769,0.00020273,2]
[371762391,1752419468723,-572.84843279,0.00020273,2]
[371762392,1752419468733,-460.0,0.00020273,2]
[371762393,1752419468742,-937.76,0.00020273,2]
[371762394,1752419468752,-470.15383802,0.00020273,2]
[371762395,1752419468762,-927.21,0.00020273,2]
[371762396,1752419468771,-460.0,0.00020273,2]
[371762397,1752419468781,-460.0,0.00020273,2]
[371762398,1752419468792,-460.0,0.00020273,2]
[371762399,1752419468801,-1964.64,0.00020273,2]
[371762400,1752419468810,-460.0,0.00020273,2]
[371762401,1752419468820,-546.3,0.00020273,2]
[371762402,1752419468830,-460.0,0.00020273,2]
[371762403,1752419468840,-821.8,0.00020273,2]
[371762404,1752419468849,-460.0,0.00020273,2]
[371762405,1752419468859,-460.0,0.00020273,2]
[371762406,1752419468869,-460.0,0.00020273,2]
[371762407,1752419468879,-460.0,0.00020273,2]
[371762408,1752419468889,-826.45161175,0.00020447,2]
[371762409,1752419468898,-577.183168,0.00020547,2]
[371762410,1752419468907,-577.183168,0.00020547,2]
[371762411,1752419468917,-151.0,0.00020547,2]
[371762412,1752419468926,-151.0,0.00020547,2]
[371762413,1752419468936,-460.0,0.00020547,2]
[371762414,1752419468946,-460.0,0.00020547,2]
[371762415,1752419468956,-460.0,0.00020547,2]
[371762416,1752419468966,-460.0,0.00020547,2]
[371762417,1752419468976,-460.0,0.00020547,2]
[371762418,1752419468985,-460.0,0.00020547,2]
[371762419,1752419468995,-563.76,0.00020547,2]
[371762420,1752419469004,-460.0,0.00020547,2]
[371762421,1752419469017,-460.0,0.00020547,2]
[371762422,1752419469026,-2850.19,0.00020547,2]
[371762423,1752419469035,-517.19,0.00020547,2]
[371762424,1752419469045,-564.42,0.00020547,2]
[371762425,1752419469055,-1941.3,0.00020547,2]
[371762426,1752419469065,-781.28,0.00020547,2]
[371762427,1752419469074,-460.0,0.00020547,2]
[371762428,1752419469083,-460.0,0.00020547,2]
[371762429,1752419469093,-460.0,0.00020547,2]
[371762430,1752419469103,-460.0,0.00020547,2]
[371762431,1752419469113,-1109.74,0.00020547,2]
[371762432,1752419469123,-460.0,0.00020547,2]
[371762433,1752419469133,-555.81,0.00020547,2]
[371762434,1752419469142,-460.0,0.00020547,2]
[371762435,1752419469152,-460.0,0.00020547,2]
[371762436,1752419469162,-460.0,0.00020547,2]
[371762437,1752419469171,-460.0,0.00020547,2]
[371762438,1752419469181,-460.0,0.00020547,2]
[371762439,1752419469191,-1494.57,0.00020547,2]
[371762440,1752419469200,-741.45,0.00020547,2]
[371762441,1752419469209,-460.0,0.00020547,2]
[371762442,1752419469219,-601.87,0.00020547,2]
[371762443,1752419469228,-460.0,0.00020547,2]
[371762444,1752419469238,-460.0,0.00020547,2]
[371762445,1752419469247,-937.76,0.00020547,2]
[371762446,1752419469256,-927.21,0.00020547,2]
[371762447,1752419469266,-460.0,0.00020547,2]
[371762448,1752419469276,-460.0,0.00020547,2]
[371762449,1752419469286,-1964.64,0.00020547,2]
[371762450,1752419469296,-460.0,0.00020547,2]
[371762451,1752419469306,-546.3,0.00020547,2]
[371762452,1752419469316,-460.0,0.00020547,2]
[371762453,1752419469327,-821.8,0.00020547,2]
[371762454,1752419469336,-460.0,0.00020547,2]
[371762455,1752419469346,-203.88754202,0.00020547,2]
[371762456,1752419469355,-460.0,0.00020547,2]
[371762457,1752419469364,-460.0,0.00020547,2]
[371762458,1752419469373,-501.18861077,0.0002065,2]
[371762459,1752419469383,-500.0,0.0002065,2]
[371762460,1752419469393,-500.0,0.0002065,2]
[371762461,1752419469403,-178.64103196,0.00020761,2]
[371762462,1752419469412,-383.625,0.00020761,2]
[371762463,1752419469422,-460.0,0.00020821,2]
[371762464,1752419469432,-265.04993,0.00020821,2]
[371762465,1752419469442,-265.04993,0.00020821,2]
[371762466,1752419469451,-305.32,0.00020821,2]